Cogmind - Beta 12 @@@ ROGUE MODE // 2023.04.08 @ 17:11:33 Player: Benkyo Result: Destroyed self with Grenade Launcher Performance ------------- Evolutions (0) 0 Regions Visited (2) 400 Robots Destroyed (25) 125 Value Destroyed (543) 543 Prototype IDs (4) 80 Alien Tech Used (0) 0 Bonus (-6) -6 TOTAL SCORE: 1142 Bonus ------- Follower Combat Kills 106 Friendly Fire -112 Cogmind --------- Core Integrity 0/250 Matter 240/300 Energy 84/100 System Corruption 0% Temperature Cool (0) Movement Rolling (115) Ox1 Location -10/Mines Parts ------- > --- POWER (1) -------- (None) > --- PROPULSION (2) --- Compact Wheel > --- UTILITY (2) ------ Large Storage Unit Structural Scanner > --- WEAPON (2) ------- Grenade Launcher > --- INVENTORY (15) --- Light Ion Engine Wheel Compact Wheel Compact Wheel Huge Storage Unit High-capacity Matter Pod (200) Particle Gun Light Cannon Light Cannon Light Cannon Light Cannon Datajack Mining Laser Hammer Peak State ------------ > --- POWER ------------ Light Nuclear Core > --- PROPULSION ------- Compact Wheel Compact Wheel > --- UTILITY ---------- Large Storage Unit Utility Shielding > --- WEAPON ----------- Particle Gun Light Cannon > --- INVENTORY -------- Light Ion Engine Aluminum Leg Aluminum Leg Wheel Particle Gun Light Cannon Grenade Launcher Grenade Launcher Mining Laser [Rating: 11] Favorites ----------- Power Light Nuclear Core Engine Light Ion Engine Power Core Light Nuclear Core Propulsion Compact Wheel Treads Light Treads Leg Aluminum Leg Wheel Compact Wheel Utility Large Storage Unit Device Structural Scanner Storage Large Storage Unit Protection Utility Shielding Weapon Light Cannon Energy Gun EM Pulse Gun Ballistic Gun Light Assault Rifle Ballistic Cannon Light Cannon Launcher Grenade Launcher Build | -11 -10 -10 ------- Run | Jun Mat Min Slots Evolved . | . . . Power . | . . . Propulsion . | . . . Utility . | . . . Weapon . | . . . Parts Attached 27 | 7 18 2 Power 3 | 1 2 . Engine 2 | 1 1 . Core 1 | . 1 . Reactor . | . . . Propulsion 7 | 2 5 . Treads 2 | 2 . . Leg 3 | . 3 . Wheel 2 | . 2 . Hover . | . . . Flight . | . . . Utility 5 | 2 3 . Device 2 | 1 1 . Storage 2 | 1 1 . Processor . | . . . Hackware . | . . . Protection 1 | . 1 . Artifact . | . . . Weapon 12 | 2 8 2 Energy Gun 3 | 1 2 . Energy Cannon . | . . . Ballistic Gun 3 | 1 2 . Ballistic Cannon 3 | . 3 . Launcher 3 | . 1 2 Special Weapon . | . . . Impact Weapon . | . . . Slashing Weapon . | . . . Piercing Weapon . | . . . Special Melee Weapon . | . . . Unidentified Prototypes . | . . . Parts Lost 10 | . 6 4 Power 1 | . . 1 Propulsion 3 | . 2 1 Utility 1 | . 1 . Weapon 5 | . 3 2 Highest Loss Streak 6 | . 6 4 To Critical Strikes . | . . . Average Slot Usage (%) 97 | . 97 98 Engine 2 | . 2 . Core 11 | . 11 13 Treads 3 | . 4 . Leg 4 | . 5 . Wheel 19 | . 18 28 Device 4 | . 3 14 Storage 14 | . 14 14 Protection 7 | . 9 . Energy Gun 3 | . 4 . Ballistic Gun 4 | . 4 . Ballistic Cannon 18 | . 17 26 Naked Turns . | . . . Heaviest Build 32 | 12 32 32 Greatest Support 40 | 40 40 32 Greatest Overweight (x) 2 | 2 1 . Average Overweight (x) . | . . . Largest Inventory Capacity 15 | 8 15 15 Average Capacity 12 | 7 12 15 Most Carried 15 | 8 15 15 Average Carried 11 | 4 11 14 Final Capacity 15 | 8 15 15 Final Carried 15 | 8 15 14 Class Distribution -------------------- 95% | Mutant 4% | Scavenger-Mutant Dominant Class ---------------- Mutant | -10/Materials Mutant | -10/Mines Resources | -11 -10 -10 ----------- Run | Jun Mat Min Matter Collected 793 | 277 311 205 Remotely . | . . . Salvage Created 786 | 98 534 154 Parts 52 | 8 39 5 Haulers Intercepted 1 | . 1 . Recyclers Shooed . | . . . Parts Field Recycled . | . . . Retrieved Matter . | . . . Parts Self-Destructed . | . . . Prevented . | . . . Kills | -11 -10 -10 ------- Run | Jun Mat Min Combat Hostiles Destroyed 22 | . 12 10 Guns 8 | . 8 . Cannons 9 | . 4 5 AOE 5 | . . 5 Classes Destroyed 10 | 2 5 3 Builder 1 | . 1 . Tunneler 1 | 1 . . Hauler 1 | . 1 . Recycler 2 | 1 . 1 Watcher 3 | . 3 . Swarmer 5 | . 2 3 Grunt 10 | . 10 . Demolisher 1 | . . 1 Assembled 6 | . . 6 Guerrilla 1 | . . 1 Best Kill Streak 8 | 1 3 8 Combat Bots Only 7 | . 3 7 Max Kills in Single Turn 3 | 1 1 3 Gunslinging . | . . . Exploded 3 | . . 3 Melee . | . . . Uniques/NPCs Destroyed . | . . . Combat | -11 -10 -10 -------- Run | Jun Mat Min Damage Taken 1395 | . 869 526 Core 251 | . 138 113 Absorbed by Shields . | . . . Redirected to Shielding 3 | . 3 . Core Remaining (%) 100 | 100 . . Volleys Fired 54 | 7 37 10 Largest 2 | 2 2 2 Hottest 85 | 60 85 70 Shots Fired 93 | 12 62 19 Gun 49 | 12 37 . Cannon 40 | . 24 16 Launcher 4 | . 1 3 Special . | . . . Kinetic 71 | 7 48 16 Thermal 8 | . 8 . Explosive 4 | . 1 3 Electromagnetic 10 | 5 5 . Robot Hit Streak 14 | 5 14 5 Robot Miss Streak 2 | 1 2 2 Penetration Max . | . . . Secondary Targets 1 | . 1 . Max Gunslinging Chain 1 | . 1 . Shots Hit Robots 61 | 9 42 10 Core Hits 46 | 4 25 17 Critical Kills . | . . . Critical Parts Destroyed . | . . . Critical Strikes . | . . . Melee Attacks . | . . . Impact . | . . . Slashing . | . . . Piercing . | . . . Sneak Attacks . | . . . Combat Hostiles . | . . . Follow-up Attacks . | . . . Damage Inflicted 1074 | 86 584 404 Guns 418 | 86 332 . Cannons 404 | . 252 152 Explosions 252 | . . 252 Melee . | . . . Ramming . | . . . Kinetic 617 | 46 419 152 Thermal 131 | . 131 . Explosive 252 | . . 252 Electromagnetic 74 | 40 34 . Impact . | . . . Slashing . | . . . Piercing . | . . . Highest Corruption . | . . . Average Corruption . | . . . Corruption Purged . | . . . Corruption Blocked . | . . . Overload Shots . | . . . Overflow Damage 25 | . . 25 Projectiles 3 | . . 3 Explosions 22 | . . 22 Melee . | . . . Knockbacks 3 | . 1 2 Impact . | . . . Kinetic 3 | . 1 2 Secondary . | . . . Self-Inflicted Damage 89 | . . 89 Shots 3 | . . 3 Rammed . | . . . Targets Rammed . | . . . Kicked . | . . . Crushed . | . . . Highest Temperature 187 | 40 187 45 Average Temperature 42 | 17 51 20 Received Heat Transfer 396 | . 396 . Siege Activations . | . . . Robots Corrupted . | . . . Combat Hostiles . | . . . Parts Fried . | . . . Impact Corruptions . | . . . Robots Melted . | . . . Combat Hostiles . | . . . Parts Melted . | . . . Heat Transferred 296 | . 296 . Parts Sabotaged . | . . . Parts Stolen . | . . . Parts Stripped . | . . . Power Chain Reactions . | . . . Missiles Intercepted . | . . . Alert | -11 -10 -10 ------- Run | Jun Mat Min Peak Influence 273 | 10 273 231 Initial 39 | . 6 39 Average 113 | 5 123 161 Maximum Alert Level 1 | . 1 1 Low Security (%) 78 | 100 77 61 Level 1 21 | . 22 38 Level 2 . | . . . Level 3 . | . . . Level 4 . | . . . Level 5 . | . . . High Security . | . . . Max Security . | . . . Squads Dispatched 3 | . 3 . Investigation 2 | . 2 . Extermination . | . . . Reinforcement 1 | . 1 . Assault . | . . . Garrison . | . . . Intercept . | . . . Searches Triggered . | . . . Construction Impeded . | . . . Haulers Reinforced . | . . . Active Scanning Responses . | . . . Cargo Convoy Interrupts . | . . . Stealth | -11 -10 -10 --------- Run | Jun Mat Min Distress Signals 1 | . 1 . Communications Jammed . | . . . Distress Signals . | . . . Times Spotted 31 | . 17 14 Peak Tracking Total 9 | . 7 9 Tactical Retreats . | . . . Traps | -11 -10 -10 ------- Run | Jun Mat Min Traps Triggered . | . . . Indirectly . | . . . Trap Hack Attempts . | . . . Triggered . | . . . Disarmed . | . . . Reprogrammed . | . . . Reused . | . . . Traps Extracted . | . . . Installed . | . . . Triggered . | . . . Machines | -11 -10 -10 ---------- Run | Jun Mat Min Machines Disabled . | . . . Max in Single Turn . | . . . Machines Repaired . | . . . Machines Sabotaged . | . . . Overloaded Fab Kills . | . . . Hacking | -11 -10 -10 --------- Run | Jun Mat Min Machines Accessed 9 | . 9 . Terminals 7 | . 7 . Fabricators . | . . . Repair Stations . | . . . Recycling Units 2 | . 2 . Scanalyzers . | . . . Garrison Access . | . . . Total Hacks 26 | . 26 . Successful 13 | . 13 . Failed 13 | . 13 . Catastrophic 2 | . 2 . Database Lockouts . | . . . Manual 13 | . 13 . Terminals 21 | . 21 . Fabricators . | . . . Repair Stations . | . . . Recycling Units 5 | . 5 . Scanalyzers . | . . . Garrison Access . | . . . Terminal Hacks 7 | . 7 . Part Schematic 1 | . 1 . Prototype ID Bank 2 | . 2 . Locate Traps 3 | . 3 . Hauler Manifests 1 | . 1 . Fabricator Hacks . | . . . Repair Station Hacks . | . . . Recycling Unit Hacks 1 | . 1 . Retrieve Components 1 | . 1 . Scanalyzer . | . . . Garrison Access Hacks . | . . . Unauthorized Hacks 5 | . 5 . Terminals 3 | . 3 . Botnet 2 | . 2 . Operators 1 | . 1 . Fabricators . | . . . Repair Stations . | . . . Recycling Units 2 | . 2 . Tunnel 2 | . 2 . Scanalyzers . | . . . Garrison Access . | . . . Data Cores Recovered . | . . . Used . | . . . Hacking Detections 7 | . 7 . Full Trace Events . | . . . Feedback Events . | . . . Feedback Blocked . | . . . Robot Schematics Acquired . | . . . Robots Built . | . . . Authchips . | . . . Time . | . . . Total Robot Build Rating . | . . . Part Schematics Acquired 1 | . 1 . Parts Built . | . . . Authchips . | . . . Time . | . . . Total Part Build Rating . | . . . Parts Repaired . | . . . Time . | . . . Parts Recycled . | . . . Recycled Matter . | . . . Retrieved Matter . | . . . Retrieved Components 9 | . 9 . Parts Scanalyzed . | . . . Part Schematics Acquired . | . . . Parts Damaged . | . . . Bothacking | -11 -10 -10 ------------ Run | Jun Mat Min Used RIF Installer . | . . . Robots Hacked . | . . . Non-combat . | . . . Combat . | . . . Robot Hacks Applied . | . . . Relay Couplers Released . | . . . Fabnet Peak Effective % . | . . . Robots Rewired . | . . . Allies Hacked . | . . . Hacks Repelled . | . . . Allies | -11 -10 -10 -------- Run | Jun Mat Min Total Allies 3 | . . 3 Largest Group 3 | . . 3 Highest-Rated Group 77 | . . 77 Highest-Rated Ally 31 | . . 31 Total Orders . | . . . Ally Attacks 12 | . . 12 Total Damage 213 | . . 213 Kills 4 | . . 4 Allies Corrupted . | . . . Allies Melted . | . . . Intel | -11 -10 -10 ------- Run | Jun Mat Min Robot Analysis Total . | . . . Derelict Logs Recovered . | . . . Drone Launches . | . . . Drone Recoveries . | . . . Exploration | -11 -10 -10 ------------- Run | Jun Mat Min Turns Passed 1292 | 158 979 155 Spaces Moved 933 | 86 731 116 Core 15 | 15 . . Treads 137 | 71 66 . Legs 124 | . 124 . Wheels 657 | . 541 116 Hover . | . . . Flight . | . . . Fastest Speed 50 | 50 100 100 Average Speed 111 | 143 109 100 Slowest Speed 190 | 160 190 100 Overloaded Moves . | . . . Propulsion Burnouts . | . . . Robots Hopped . | . . . Cave-ins Triggered . | . . . Exploration Rate (%) 43 | 7 96 28 Regions Visited 2 Branch Regions 1 Pre-discovered Areas 3 | . 2 1 Known Exits Taken . | . . . Unknown Exits Taken 2 | 1 1 . Scrap Searched 1 | . . 1 Spaces Dug . | . . . Terrain Destroyed 21 | . 12 9 Melee . | . . . Projectile . | . . . AOE 21 | . 12 9 Terrain Rammed . | . . . Walls Destroyed . | . . . Machines Disabled . | . . . Actions | -11 -10 -10 --------- Run | Jun Mat Min Total 1092 | 107 848 137 Wait 47 | . 38 9 Move 931 | 85 730 116 Hop . | . . . Pick Up 23 | 8 15 . Fast Attach 12 | 7 5 . Attach 4 | . 3 1 Detach . | . . . Swap 11 | . 10 1 Drop 10 | . 10 . Fire 54 | 7 37 10 Melee . | . . . Ram . | . . . Kick . | . . . Crush . | . . . Escape Stasis . | . . . Rewire . | . . . Trap . | . . . Miscellaneous . | . . . Route ------- -11/Junkyard -10/Materials (discovered 4 exits: [*Mat x3] / [*Min]) -10/Mines (discovered 1 exit: [*Mat]) History --------- Turn | Location | Event 15 | -11/Junkyard | Discovered new exit (range 16) 159 | -11/Junkyard | Entered Materials 315 | -10/Materials | Core integrity fell below 50% 335 | -10/Materials | Lost 6 parts (2n1u3w) 354 | -10/Materials | Build established: Mutant 588 | -10/Materials | Discovered new exit (range 4) 684 | -10/Materials | Discovered new exit (range 16) 761 | -10/Materials | Discovered new exit (range 11) 963 | -10/Materials | Discovered new exit (range 3) 1138 | -10/Materials | Entered Mines 1141 | -10/Mines | Escorted by a lone wolf Derelict 1161 | -10/Mines | Learned location of Storage (-8) 1179 | -10/Mines | Discovered new exit (range 12) 1256 | -10/Mines | Assembled infested the area 1261 | -10/Mines | Assisted by a Guerilla fighting off Assembled 1287 | -10/Mines | Core integrity fell below 20% 1293 | -10/Mines | Destroyed self with Grenade Launcher Last Messages --------------- 01277_ 3X-BG2(g): "Mission, incomplete...*fzzt*" 01277_ 3X-BG2(g) destroyed. 01278_ Destroyed Phase Shifter. 01278_ CG-TWQ(h) destroyed. 01281_ as-58302 destroyed. 01285_ as-36524 destroyed. 01286_ R-06 Scavenger destroyed. 01286_ as-55352 knocked back. 01289_ Destroyed Asb. Hover Unit. 01289_ as-55352 destroyed. 01289_ Lgt. Nuclear Core destroyed. 01289_ Destroyed Lgt. Nuclear Core. 01289_ as-16860 destroyed. 01289_ as-68582 destroyed. 01289_ Lgt. Cannon destroyed. 01290_ Grenade Launcher destroyed. 01293_ as-50783 destroyed. 01293_ as-24058 destroyed. 01293_ Com. Wheel destroyed. 01293_ Destroyed Com. Wheel. Map ----- +----------------------------------------------------+ | ??????????????????????????????????????????????? | | ?????????????????????????????#####????????????? | | ????????????????????????????#######???????????? | | ???????????######????????###### ###???????????? | | ??????????########??????###### ##???????????? | | ??????? ##### ####?????### ##??####?????? | | ??????? #### ####????## * ##########????? | | ???????## ######### ###### ###????? | | ???????## ######### [ ###### ##????? | | ?????????# # ### ###**### ##????? | | ??????????### < ## #### ##[ =###????? | | ?????######## ## ## [###????? | | ????######### # ######[== ##?????? | | ????### ### ####### ###?????? | | ????## # ### ##??########?????? | | ????## ## #### ###########??????? | | ????### ### #### #######??????????? | | ????### ## u #### ### #??????????? | | ?????### ### ### #### ## ???????????? | | ?????############## ###### # ?????????????? | | ??????############# %###### ##?????????????? | | ????????## ! #### ;;### ###?????????????? | | ????????## [= # r###??????????????? | | ????????## * =[ ! ###??????????????? | | ????????## """ ### %= ##??????????????? | | ????????## """ #### @! ##??????????????? | | ????????## """ ### ###??????????????? | | ????????## ### [ #####??????????????? | | ????????########## *%= ####???????????????? | | ????????########### [ ##????????????????? | | ????????????????### %% ##????????????????? | | ?????????????????## # ##????????????????? | | ?????????????????## # % ###????????????????? | | ?????????????????### |%# ###????????????????? | | ?????????????????####%= ###?????????????????? | | ??????????????????### #### ?????????????????? | | ???????????????????### ##??????????????????? | | ???????????????????### ##??????????????????? | | ????????????????????#### ##??????????????????? | | ????????????????????####a ##??????????????????? | | ??????????????????????## ##??????????????????? | | ??????????????????????## ##??????????????????? | | ??????????????????????## #??????????????????? | | ?????????????????????? ??????????????????? | | ?????????????????????? ?????????????????? | | ??????????????????????## #???????????????? | | ??????????????????????## ##???????????????? | | ??????????????????????## ###???????????????? | | ??????????????????????## ###???????????????? | | ???????????????????????## ###????????????????? | +----------------------------------------------------+ Best States ------------- Heat Dissipation 25 Energy Generation 14 Energy Capacity 250 Matter Stores 300 Matter Capacity 300 Sight Range 16 Terrain Scan Density 10 Utility Shielding 33 Evasion (%) 55 Recoil Reduction 2 Item Schematics ----------------- Huge Storage Unit | -10/Materials | Hacked Robot Schematics ------------------ None Fabricated ------------ Nothing Alien Tech Used ----------------- None Achievements -------------- None Challenges ------------ None Game ------ Seed MomentumEnergyRail Manual? 0 Play Time 00:16:49 Cumulative 469.8 hours Start 2023.04.08 @ 16:56:36 End 2023.04.08 @ 17:11:33 Sessions 1 Manual Loads 0 Difficulty Rogue Special Mode None Game No. 85 Rogue 78 Adventurer 1 Explorer 6 Win Type - Total 37 Types 11/3/12/1/1/1/6/1/1 Lore% 92 Gallery% 92 Achievement% 83 Wizard Run 0 Options --------- ASCII 0 Keyboard 0 Movement Mouse Keybinds 0 Fullscreen 1 Font 18/SmallcapsGlow Map View 76x50 Tactical HUD 1 Map Filters NONE Filters NONE Steam 1 RUN: 5c5d5ed1-aad5-4740-b4ed-6b3f9823d88c